[Event "Live Chess"]
[Site "Chess.com"]
[Date "2023.05.20"]
[Round "-"]
[White "elizaveta_frundina"]
[Black "Assassin696969"]
[Result "1-0"]
[WhiteElo "1565"]
[BlackElo "2097"]
[TimeControl "300"]
[EndTime "10:24:34 PDT"]
[Termination "elizaveta_frundina won by resignation"]

1. e4 {[%clk 0:04:57.6]} 1... c6 {[%clk 0:04:59.2]} 2. Nf3 {[%clk 0:04:56]} 2...
d5 {[%clk 0:04:59.1]} 3. exd5 {[%clk 0:04:53.1]} 3... cxd5 {[%clk 0:04:59]} 4.
d4 {[%clk 0:04:52.4]} 4... Nc6 {[%clk 0:04:58.4]} 5. Nc3 {[%clk 0:04:51.3]} 5...
Bg4 {[%clk 0:04:57.7]} 6. Be2 {[%clk 0:04:48.1]} 6... e6 {[%clk 0:04:56.9]} 7.
O-O {[%clk 0:04:47.1]} 7... Bd6 {[%clk 0:04:55.7]} 8. h3 {[%clk 0:04:45.9]} 8...
Bh5 {[%clk 0:04:53.8]} 9. Re1 {[%clk 0:04:40.9]} 9... Nge7 {[%clk 0:04:52.5]}
10. Ne5 {[%clk 0:04:34.6]} 10... Bxe2 {[%clk 0:04:50]} 11. Rxe2 {[%clk
0:04:28.3]} 11... O-O {[%clk 0:04:42]} 12. Bf4 {[%clk 0:04:19.1]} 12... Nf5
{[%clk 0:04:26.6]} 13. Nb5 {[%clk 0:04:08.1]} 13... Bxe5 {[%clk 0:04:07.9]} 14.
Bxe5 {[%clk 0:03:57.1]} 14... Nxe5 {[%clk 0:04:02.2]} 15. dxe5 {[%clk
0:03:49.8]} 15... a6 {[%clk 0:04:01.3]} 16. Nc3 {[%clk 0:03:45.6]} 16... b5
{[%clk 0:03:50.4]} 17. g4 {[%clk 0:03:35.3]} 17... Nh4 {[%clk 0:03:46]} 18. Qd3
{[%clk 0:03:26.7]} 18... Rc8 {[%clk 0:03:39.1]} 19. Qg3 {[%clk 0:03:23.7]} 19...
d4 {[%clk 0:03:26.3]} 20. Ne4 {[%clk 0:03:12.2]} 20... Ng6 {[%clk 0:03:15.1]}
21. f4 {[%clk 0:03:05.4]} 21... Qb6 {[%clk 0:03:04.9]} 22. Kh2 {[%clk
0:02:56.5]} 22... f5 {[%clk 0:02:44.1]} 23. gxf5 {[%clk 0:02:50]} 23... Rxf5
{[%clk 0:02:35.7]} 24. Nd6 {[%clk 0:02:45.6]} 24... Nxf4 {[%clk 0:01:44.7]} 25.
Nxf5 {[%clk 0:02:31.8]} 25... exf5 {[%clk 0:01:22.1]} 26. Qxf4 {[%clk 0:02:27]}
26... Rc4 {[%clk 0:01:14.1]} 27. Qxf5 {[%clk 0:02:16.8]} 27... Qd8 {[%clk
0:00:52.9]} 28. Rf1 {[%clk 0:02:09.6]} 28... h6 {[%clk 0:00:51.9]} 29. Qf7+
{[%clk 0:02:01.4]} 29... Kh7 {[%clk 0:00:48.6]} 30. Rg1 {[%clk 0:01:56.1]} 30...
Qg8 {[%clk 0:00:33.6]} 31. Qg6+ {[%clk 0:01:43.3]} 31... Kh8 {[%clk 0:00:32.3]}
32. Reg2 {[%clk 0:01:40.7]} 32... Rc7 {[%clk 0:00:29.9]} 33. Qxh6+ {[%clk
0:01:35]} 33... gxh6 {[%clk 0:00:27.7]} 34. Rxg8+ {[%clk 0:01:33.7]} 34... Kh7
{[%clk 0:00:27.1]} 35. e6 {[%clk 0:01:29.9]} 35... Rxc2+ {[%clk 0:00:21.8]} 36.
R8g2 {[%clk 0:01:24.9]} 36... Rc7 {[%clk 0:00:19.2]} 37. Rd2 {[%clk 0:01:19.8]}
37... Re7 {[%clk 0:00:17.7]} 38. Re1 {[%clk 0:01:18.1]} 38... Kg6 {[%clk
0:00:17.3]} 39. Rxd4 {[%clk 0:01:16.7]} 39... Kf5 {[%clk 0:00:16.8]} 40. Rd6
{[%clk 0:01:14.3]} 40... Kf4 {[%clk 0:00:15.5]} 41. Rd7 {[%clk 0:01:12.7]} 41...
Re8 {[%clk 0:00:14.7]} 42. e7 {[%clk 0:01:11.5]} 42... Kf3 {[%clk 0:00:12.4]}
43. Rd8 {[%clk 0:01:09.6]} 43... Rxd8 {[%clk 0:00:09.3]} 1-0

[Event "Live Chess"]
[Site "Chess.com"]
[Date "2023.05.20"]
[Round "-"]
[White "ReeceHockton"]
[Black "TobyQuaite"]
[Result "0-1"]
[WhiteElo "331"]
[BlackElo "1701"]
[TimeControl "300"]
[EndTime "10:24:38 PDT"]
[Termination "TobyQuaite won by resignation"]

1. d4 {[%clk 0:04:54.4]} 1... e6 {[%clk 0:04:59.1]} 2. Nf3 {[%clk 0:04:52]} 2...
Nf6 {[%clk 0:04:58.5]} 3. e3 {[%clk 0:04:50.8]} 3... c5 {[%clk 0:04:57.2]} 4.
Bc4 {[%clk 0:04:47.8]} 4... Nc6 {[%clk 0:04:54.5]} 5. Bb5 {[%clk 0:04:46]} 5...
a6 {[%clk 0:04:53.3]} 6. Bxc6 {[%clk 0:04:45.1]} 6... bxc6 {[%clk 0:04:53.2]} 7.
dxc5 {[%clk 0:04:42.5]} 7... Bxc5 {[%clk 0:04:52.8]} 8. c4 {[%clk 0:04:38.3]}
8... d5 {[%clk 0:04:51.8]} 9. cxd5 {[%clk 0:04:36.7]} 9... cxd5 {[%clk
0:04:51.7]} 10. Nd4 {[%clk 0:04:33.5]} 10... Bb7 {[%clk 0:04:48.8]} 11. a3
{[%clk 0:04:30.7]} 11... e5 {[%clk 0:04:46.9]} 12. Nb3 {[%clk 0:04:24.5]} 12...
Bb6 {[%clk 0:04:43.5]} 13. e4 {[%clk 0:04:21.5]} 13... Nxe4 {[%clk 0:04:40.8]}
14. Bg5 {[%clk 0:04:17.1]} 14... Qxg5 {[%clk 0:04:35.5]} 15. Qxd5 {[%clk
0:04:16.7]} 15... Bxd5 {[%clk 0:04:33.9]} 16. f3 {[%clk 0:02:00.5]} 16... Qxg2
{[%clk 0:04:31]} 17. Rg1 {[%clk 0:01:58.7]} 17... Qxg1+ {[%clk 0:04:29.4]} 18.
Ke2 {[%clk 0:01:57]} 0-1

[Event "Live Chess"]
[Site "Chess.com"]
[Date "2023.05.20"]
[Round "-"]
[White "IanCalvert2"]
[Black "wot-not"]
[Result "1-0"]
[WhiteElo "1633"]
[BlackElo "1460"]
[TimeControl "300"]
[EndTime "10:24:44 PDT"]
[Termination "IanCalvert2 won by resignation"]

1. b3 {[%clk 0:04:58.1]} 1... Nf6 {[%clk 0:04:58.9]} 2. Bb2 {[%clk 0:04:55.3]}
2... d6 {[%clk 0:04:58.5]} 3. d4 {[%clk 0:04:52.8]} 3... Bg4 {[%clk 0:04:53.4]}
4. h3 {[%clk 0:04:46.1]} 4... Bh5 {[%clk 0:04:52.4]} 5. Nf3 {[%clk 0:04:43.8]}
5... Bxf3 {[%clk 0:04:49.7]} 6. exf3 {[%clk 0:04:41.6]} 6... Nc6 {[%clk
0:04:48.8]} 7. d5 {[%clk 0:04:39.2]} 7... Ne5 {[%clk 0:04:46.6]} 8. f4 {[%clk
0:04:29.4]} 8... Ned7 {[%clk 0:04:45.5]} 9. c4 {[%clk 0:04:23.2]} 9... Nb6
{[%clk 0:04:41.1]} 10. Be2 {[%clk 0:04:13.8]} 10... g6 {[%clk 0:04:32.4]} 11.
Bxf6 {[%clk 0:04:08]} 11... exf6 {[%clk 0:04:30.8]} 12. O-O {[%clk 0:04:06.4]}
12... Bg7 {[%clk 0:04:29]} 13. Nd2 {[%clk 0:04:04.3]} 13... O-O {[%clk
0:04:27.9]} 14. Rc1 {[%clk 0:03:51.3]} 14... Nd7 {[%clk 0:04:26.6]} 15. b4
{[%clk 0:03:45.8]} 15... a5 {[%clk 0:04:24.9]} 16. a3 {[%clk 0:03:39.6]} 16...
f5 {[%clk 0:04:18.6]} 17. Nf3 {[%clk 0:03:31.2]} 17... axb4 {[%clk 0:04:14.4]}
18. axb4 {[%clk 0:03:27.6]} 18... Nf6 {[%clk 0:04:13.3]} 19. Nd4 {[%clk
0:03:18]} 19... Ne4 {[%clk 0:04:08.2]} 20. Bf3 {[%clk 0:03:14.1]} 20... Re8
{[%clk 0:04:01.9]} 21. Re1 {[%clk 0:03:10.8]} 21... Ra2 {[%clk 0:03:48.6]} 22.
Bxe4 {[%clk 0:03:01.1]} 22... Rxe4 {[%clk 0:03:46.1]} 23. Nc2 {[%clk 0:02:58.8]}
23... Qe8 {[%clk 0:03:30.1]} 24. f3 {[%clk 0:02:17.8]} 24... Rxe1+ {[%clk
0:03:26.8]} 25. Qxe1 {[%clk 0:02:10]} 25... Qxe1+ {[%clk 0:03:25.4]} 26. Nxe1
{[%clk 0:02:07.7]} 26... Bd4+ {[%clk 0:03:02.7]} 27. Kh2 {[%clk 0:01:52.4]}
27... Be3 {[%clk 0:02:37.4]} 28. Rc2 {[%clk 0:01:47.4]} 28... Rxc2 {[%clk
0:02:31.3]} 29. Nxc2 {[%clk 0:01:44.9]} 29... Bxf4+ {[%clk 0:02:31]} 30. Kg1
{[%clk 0:01:43.1]} 30... Be5 {[%clk 0:02:10.2]} 31. Kf1 {[%clk 0:01:38.9]} 31...
Kf8 {[%clk 0:02:06.2]} 32. Ke2 {[%clk 0:01:37.4]} 32... Ke7 {[%clk 0:02:05.2]}
33. Kd3 {[%clk 0:01:36]} 33... Kd7 {[%clk 0:02:04.2]} 34. Ne3 {[%clk 0:01:31.7]}
34... f4 {[%clk 0:01:52.2]} 35. Ng4 {[%clk 0:01:26.1]} 35... f5 {[%clk
0:01:48.2]} 36. Nf2 {[%clk 0:01:22.5]} 36... c6 {[%clk 0:01:44.6]} 37. b5 {[%clk
0:01:08.8]} 37... cxb5 {[%clk 0:01:38.6]} 38. cxb5 {[%clk 0:01:06.9]} 38... Kc7
{[%clk 0:01:38.3]} 39. Kc4 {[%clk 0:01:04.5]} 39... Kb6 {[%clk 0:01:32]} 40. Nd3
{[%clk 0:01:02.6]} 40... g5 {[%clk 0:01:23.2]} 41. Nxe5 {[%clk 0:00:58.6]} 41...
dxe5 {[%clk 0:01:22.5]} 42. d6 {[%clk 0:00:56.9]} 42... h5 {[%clk 0:01:18.7]}
43. Kd5 {[%clk 0:00:53.3]} 43... g4 {[%clk 0:01:15]} 44. Kxe5 {[%clk 0:00:50.7]}
44... gxf3 {[%clk 0:01:11.8]} 45. gxf3 {[%clk 0:00:48.6]} 45... h4 {[%clk
0:01:05.8]} 46. Ke6 {[%clk 0:00:47.1]} 46... Kc5 {[%clk 0:01:04.1]} 47. d7
{[%clk 0:00:45.3]} 1-0

[Event "Live Chess"]
[Site "Chess.com"]
[Date "2023.05.20"]
[Round "-"]
[White "chessleanstrategist"]
[Black "LiamClery2020"]
[Result "0-1"]
[WhiteElo "410"]
[BlackElo "2077"]
[TimeControl "300"]
[EndTime "10:24:47 PDT"]
[Termination "LiamClery2020 won by checkmate"]

1. c4 {[%clk 0:04:58.5]} 1... Nf6 {[%clk 0:04:59.6]} 2. Nc3 {[%clk 0:04:56.6]}
2... e5 {[%clk 0:04:58.9]} 3. g3 {[%clk 0:04:55.1]} 3... c6 {[%clk 0:04:57.6]}
4. Bg2 {[%clk 0:04:54.6]} 4... d5 {[%clk 0:04:57.3]} 5. cxd5 {[%clk 0:04:52.4]}
5... cxd5 {[%clk 0:04:57.2]} 6. Nf3 {[%clk 0:04:40.8]} 6... e4 {[%clk
0:04:54.8]} 7. Nd4 {[%clk 0:04:37.9]} 7... Nc6 {[%clk 0:04:54.1]} 8. e3 {[%clk
0:04:34.9]} 8... Ne5 {[%clk 0:04:52.2]} 9. O-O {[%clk 0:04:24.5]} 9... h5 {[%clk
0:04:49.8]} 10. h4 {[%clk 0:04:22.5]} 10... Bg4 {[%clk 0:04:46.8]} 11. f3 {[%clk
0:04:16.6]} 11... exf3 {[%clk 0:04:34.9]} 12. Bxf3 {[%clk 0:04:09.7]} 12...
Nxf3+ {[%clk 0:04:33.7]} 13. Nxf3 {[%clk 0:04:08.6]} 13... Bd6 {[%clk
0:04:32.3]} 14. Qe1 {[%clk 0:03:56.1]} 14... Qc7 {[%clk 0:04:28.2]} 15. Ne2
{[%clk 0:03:40.5]} 15... Ne4 {[%clk 0:04:25.5]} 16. Kh2 {[%clk 0:03:14.2]} 16...
g5 {[%clk 0:04:20.6]} 17. d3 {[%clk 0:02:50.7]} 17... Nxg3 {[%clk 0:04:17]} 18.
Nxg3 {[%clk 0:02:47.8]} 18... Bxf3 {[%clk 0:04:16.1]} 19. Rxf3 {[%clk
0:02:39.4]} 19... gxh4 {[%clk 0:04:14.7]} 20. Kg2 {[%clk 0:02:19.2]} 20... hxg3
{[%clk 0:04:11.9]} 21. Rf5 {[%clk 0:02:10.7]} 21... h4 {[%clk 0:04:10.9]} 22. e4
{[%clk 0:01:26.4]} 22... h3+ {[%clk 0:04:08.2]} 23. Kf3 {[%clk 0:01:00.1]} 23...
h2 {[%clk 0:04:06.5]} 24. Bf4 {[%clk 0:00:51.8]} 24... h1=Q+ {[%clk 0:04:04.2]}
25. Qxh1 {[%clk 0:00:45.6]} 25... Rxh1 {[%clk 0:04:04.1]} 26. Rxh1 {[%clk
0:00:44.4]} 26... O-O-O {[%clk 0:03:59.5]} 27. Bxd6 {[%clk 0:00:19.5]} 27...
Qxd6 {[%clk 0:03:59.4]} 28. Rf4 {[%clk 0:00:18.9]} 28... g2 {[%clk 0:03:58]} 29.
Rg1 {[%clk 0:00:18.1]} 29... dxe4+ {[%clk 0:03:57.2]} 30. Kxg2 {[%clk
0:00:15.6]} 30... Qxd3 {[%clk 0:03:56.3]} 31. Rf2 {[%clk 0:00:10.1]} 31... e3
{[%clk 0:03:55.2]} 32. Rf3 {[%clk 0:00:05.4]} 32... Rg8+ {[%clk 0:03:54.2]} 33.
Kh3 {[%clk 0:00:01.3]} 33... Qh7# {[%clk 0:03:53]} 0-1

[Event "Live Chess"]
[Site "Chess.com"]
[Date "2023.05.20"]
[Round "-"]
[White "OBrightwell100"]
[Black "hturner40"]
[Result "0-1"]
[WhiteElo "1293"]
[BlackElo "1833"]
[TimeControl "300"]
[EndTime "10:24:59 PDT"]
[Termination "hturner40 won by resignation"]

1. e4 {[%clk 0:04:47.7]} 1... Nc6 {[%clk 0:04:58.2]} 2. d4 {[%clk 0:04:46.5]}
2... e5 {[%clk 0:04:56.7]} 3. d5 {[%clk 0:04:46.1]} 3... Nce7 {[%clk 0:04:55.6]}
4. f4 {[%clk 0:04:43.6]} 4... Ng6 {[%clk 0:04:54.1]} 5. f5 {[%clk 0:04:41.7]}
5... Qh4+ {[%clk 0:04:51.5]} 6. g3 {[%clk 0:04:30.8]} 6... Qxe4+ {[%clk
0:04:47.2]} 7. Qe2 {[%clk 0:04:29.9]} 7... Qxh1 {[%clk 0:04:20.6]} 8. Bg2 {[%clk
0:04:26.9]} 8... Qxg1+ {[%clk 0:04:17.4]} 9. Kd2 {[%clk 0:04:19.8]} 9... Qd4+
{[%clk 0:04:02.6]} 10. Qd3 {[%clk 0:04:17.7]} 10... Qxd3+ {[%clk 0:04:00.1]} 11.
Kxd3 {[%clk 0:04:17.6]} 0-1

[Event "Live Chess"]
[Site "Chess.com"]
[Date "2023.05.20"]
[Round "-"]
[White "lateforthesky"]
[Black "mach247"]
[Result "1-0"]
[WhiteElo "2088"]
[BlackElo "1325"]
[TimeControl "300"]
[EndTime "10:25:00 PDT"]
[Termination "lateforthesky won by checkmate"]

1. e4 {[%clk 0:04:56.1]} 1... d5 {[%clk 0:04:59.4]} 2. exd5 {[%clk 0:04:54.7]}
2... Qxd5 {[%clk 0:04:59.3]} 3. Nc3 {[%clk 0:04:53.8]} 3... Qd8 {[%clk 0:04:59]}
4. Nf3 {[%clk 0:04:51.6]} 4... Bg4 {[%clk 0:04:58.2]} 5. Bc4 {[%clk 0:04:48.6]}
5... e6 {[%clk 0:04:54.8]} 6. h3 {[%clk 0:04:45.9]} 6... Bxf3 {[%clk 0:04:53.8]}
7. Qxf3 {[%clk 0:04:43.9]} 7... c6 {[%clk 0:04:53.5]} 8. d3 {[%clk 0:04:42.1]}
8... Nf6 {[%clk 0:04:52.7]} 9. Bg5 {[%clk 0:04:38.6]} 9... Be7 {[%clk
0:04:52.2]} 10. O-O {[%clk 0:04:35.3]} 10... O-O {[%clk 0:04:51.6]} 11. Rfe1
{[%clk 0:04:33.5]} 11... Nbd7 {[%clk 0:04:49.7]} 12. a4 {[%clk 0:04:30.3]} 12...
a5 {[%clk 0:04:47.9]} 13. Rad1 {[%clk 0:04:26.8]} 13... Nd5 {[%clk 0:04:46.9]}
14. Bxe7 {[%clk 0:04:24.1]} 14... Qxe7 {[%clk 0:04:46.8]} 15. Bxd5 {[%clk
0:04:17.8]} 15... cxd5 {[%clk 0:04:45.8]} 16. Nxd5 {[%clk 0:04:16.9]} 16... Qc5
{[%clk 0:04:41.6]} 17. Nc3 {[%clk 0:04:13.7]} 17... Nf6 {[%clk 0:04:35.8]} 18.
Qe3 {[%clk 0:03:52.7]} 18... Qb4 {[%clk 0:04:28.4]} 19. Qd2 {[%clk 0:03:29.6]}
19... Rfc8 {[%clk 0:04:08.1]} 20. Rb1 {[%clk 0:03:04.7]} 20... Nd5 {[%clk
0:03:35.4]} 21. Re4 {[%clk 0:02:58.2]} 21... Qc5 {[%clk 0:03:17.8]} 22. Rc4
{[%clk 0:02:51.7]} 22... Qd6 {[%clk 0:03:16.8]} 23. Rxc8+ {[%clk 0:02:49.7]}
23... Rxc8 {[%clk 0:03:16.7]} 24. Nxd5 {[%clk 0:02:48.4]} 24... Qxd5 {[%clk
0:03:15.9]} 25. b3 {[%clk 0:02:38.9]} 25... h6 {[%clk 0:02:50.2]} 26. Re1 {[%clk
0:02:30.4]} 26... Qc5 {[%clk 0:02:48]} 27. Re2 {[%clk 0:02:27.4]} 27... e5
{[%clk 0:02:11.5]} 28. Qe3 {[%clk 0:02:24.2]} 28... Qxe3 {[%clk 0:02:08.3]} 29.
fxe3 {[%clk 0:02:23.4]} 29... f6 {[%clk 0:02:06.4]} 30. Kf1 {[%clk 0:02:21.8]}
30... Kf7 {[%clk 0:02:04.5]} 31. Ke1 {[%clk 0:02:21]} 31... Rc5 {[%clk
0:01:55.2]} 32. Kd2 {[%clk 0:02:19.4]} 32... b5 {[%clk 0:01:54.7]} 33. axb5
{[%clk 0:02:12]} 33... Rxb5 {[%clk 0:01:53.8]} 34. Re1 {[%clk 0:02:05.3]} 34...
Ke6 {[%clk 0:01:41.8]} 35. Ra1 {[%clk 0:02:03.9]} 35... f5 {[%clk 0:01:41.1]}
36. Ra4 {[%clk 0:02:02.1]} 36... g5 {[%clk 0:01:37.1]} 37. Kc3 {[%clk
0:02:00.5]} 37... f4 {[%clk 0:01:32.2]} 38. exf4 {[%clk 0:01:48.5]} 38... gxf4
{[%clk 0:01:28.7]} 39. Re4 {[%clk 0:01:42.9]} 39... Kd5 {[%clk 0:01:19.7]} 40.
Kb2 {[%clk 0:01:38.3]} 40... Rb4 {[%clk 0:01:09.1]} 41. Rxb4 {[%clk 0:01:31]}
41... axb4 {[%clk 0:01:09]} 42. c3 {[%clk 0:01:30.4]} 42... bxc3+ {[%clk
0:01:04.5]} 43. Kxc3 {[%clk 0:01:29]} 43... e4 {[%clk 0:01:02.7]} 44. dxe4+
{[%clk 0:01:27.9]} 44... Kxe4 {[%clk 0:01:01.6]} 45. b4 {[%clk 0:01:22.6]} 45...
Ke3 {[%clk 0:01:01]} 46. b5 {[%clk 0:01:21.8]} 46... Kf2 {[%clk 0:01:00.9]} 47.
b6 {[%clk 0:01:21.1]} 47... Kxg2 {[%clk 0:01:00.6]} 48. b7 {[%clk 0:01:20.4]}
48... f3 {[%clk 0:01:00.5]} 49. b8=Q {[%clk 0:01:19.5]} 49... f2 {[%clk
0:01:00.4]} 50. Qg8+ {[%clk 0:01:15.9]} 50... Kf1 {[%clk 0:00:59.4]} 51. Qf7
{[%clk 0:01:09.7]} 51... Kg1 {[%clk 0:00:58.1]} 52. Qg6+ {[%clk 0:01:08.4]}
52... Kh1 {[%clk 0:00:50.2]} 53. Qf5 {[%clk 0:01:05.2]} 53... Kg1 {[%clk
0:00:49]} 54. Qg4+ {[%clk 0:01:03.5]} 54... Kh1 {[%clk 0:00:44.7]} 55. Qf3+
{[%clk 0:01:02.1]} 55... Kg1 {[%clk 0:00:43]} 56. Qg3+ {[%clk 0:01:00.8]} 56...
Kf1 {[%clk 0:00:40.2]} 57. Kd2 {[%clk 0:00:57.9]} 57... h5 {[%clk 0:00:39.8]}
58. Ke3 {[%clk 0:00:56.8]} 58... h4 {[%clk 0:00:37.5]} 59. Qxf2# {[%clk
0:00:55.9]} 1-0

[Event "Live Chess"]
[Site "Chess.com"]
[Date "2023.05.20"]
[Round "-"]
[White "friarnator"]
[Black "Zeraora719"]
[Result "1-0"]
[WhiteElo "1953"]
[BlackElo "855"]
[TimeControl "300"]
[EndTime "10:25:00 PDT"]
[Termination "friarnator won - game abandoned"]

1. e4 {[%clk 0:04:58]} 1... e5 {[%clk 0:04:59]} 2. d4 {[%clk 0:04:57.1]} 2...
exd4 {[%clk 0:04:57.9]} 3. Nf3 {[%clk 0:04:57]} 3... d5 {[%clk 0:04:53.7]} 4.
Qxd4 {[%clk 0:04:52.5]} 4... dxe4 {[%clk 0:04:49.6]} 5. Qxe4+ {[%clk 0:04:52.4]}
5... Be7 {[%clk 0:04:39.5]} 6. Bc4 {[%clk 0:04:49.3]} 6... f5 {[%clk 0:04:35.9]}
7. Qe5 {[%clk 0:04:43.3]} 7... f4 {[%clk 0:04:24.2]} 8. Qxg7 {[%clk 0:04:40.2]}
8... Bb4+ {[%clk 0:04:13.5]} 9. c3 {[%clk 0:04:37.5]} 9... Bxc3+ {[%clk
0:03:57.1]} 10. Nxc3 {[%clk 0:04:35.8]} 10... Ne7 {[%clk 0:03:56.1]} 11. Qxh8+
{[%clk 0:04:30.8]} 11... Kd7 {[%clk 0:03:54.3]} 12. Be6+ {[%clk 0:04:30.1]}
12... Kxe6 {[%clk 0:03:43.7]} 13. Qxd8 {[%clk 0:04:30]} 13... Bd7 {[%clk
0:03:42.1]} 14. O-O {[%clk 0:04:26.6]} 14... Kf7 {[%clk 0:03:35.6]} 15. Ne5+
{[%clk 0:04:24.4]} 1-0

[Event "Live Chess"]
[Site "Chess.com"]
[Date "2023.05.20"]
[Round "-"]
[White "BostonStrangler"]
[Black "LiamBellwood"]
[Result "1-0"]
[WhiteElo "2061"]
[BlackElo "2083"]
[TimeControl "300"]
[EndTime "10:25:04 PDT"]
[Termination "BostonStrangler won by resignation"]

1. Nf3 {[%clk 0:04:59]} 1... e6 {[%clk 0:04:59.1]} 2. g3 {[%clk 0:04:56]} 2...
f5 {[%clk 0:04:58.3]} 3. Bg2 {[%clk 0:04:55]} 3... Nf6 {[%clk 0:04:58]} 4. d3
{[%clk 0:04:54.4]} 4... Be7 {[%clk 0:04:54.3]} 5. O-O {[%clk 0:04:53.8]} 5...
O-O {[%clk 0:04:50.1]} 6. Nbd2 {[%clk 0:04:53.3]} 6... d6 {[%clk 0:04:48.4]} 7.
e4 {[%clk 0:04:51.7]} 7... e5 {[%clk 0:04:47]} 8. exf5 {[%clk 0:04:48.7]} 8...
Bxf5 {[%clk 0:04:46.9]} 9. d4 {[%clk 0:04:47.8]} 9... Nc6 {[%clk 0:04:42.4]} 10.
dxe5 {[%clk 0:04:43.3]} 10... dxe5 {[%clk 0:04:42.3]} 11. Qe2 {[%clk 0:04:37.3]}
11... Bxc2 {[%clk 0:04:04.4]} 12. Qc4+ {[%clk 0:04:27.4]} 12... Kh8 {[%clk
0:04:00.7]} 13. Qxc2 {[%clk 0:04:26.2]} 13... Nb4 {[%clk 0:03:51.2]} 14. Qb3
{[%clk 0:04:21.8]} 14... Nd3 {[%clk 0:03:33.6]} 15. Nc4 {[%clk 0:04:11.9]} 15...
e4 {[%clk 0:03:25]} 16. Ng5 {[%clk 0:04:10.2]} 16... Nc5 {[%clk 0:03:23.2]} 17.
Qc2 {[%clk 0:04:03.9]} 17... Qd5 {[%clk 0:02:52.8]} 18. Re1 {[%clk 0:03:32.5]}
18... Nd3 {[%clk 0:02:36]} 19. Rd1 {[%clk 0:03:32.4]} 19... Rad8 {[%clk
0:02:03.8]} 20. Be3 {[%clk 0:03:30]} 20... h6 {[%clk 0:01:56.4]} 21. Nh3 {[%clk
0:03:25.2]} 21... Ng4 {[%clk 0:01:55.8]} 22. Nf4 {[%clk 0:03:21.4]} 22... Qf5
{[%clk 0:01:40.4]} 23. h3 {[%clk 0:03:06.1]} 23... Nge5 {[%clk 0:01:29.9]} 24.
Nxe5 {[%clk 0:03:00.2]} 1-0

[Event "Live Chess"]
[Site "Chess.com"]
[Date "2023.05.20"]
[Round "-"]
[White "yeetpizza74"]
[Black "GMHarry-youtube"]
[Result "0-1"]
[WhiteElo "448"]
[BlackElo "2164"]
[TimeControl "300"]
[EndTime "10:25:12 PDT"]
[Termination "GMHarry-youtube won by checkmate"]

1. e4 {[%clk 0:04:57.6]} 1... e5 {[%clk 0:04:58.8]} 2. Nf3 {[%clk 0:04:56.6]}
2... Nf6 {[%clk 0:04:57.4]} 3. Nc3 {[%clk 0:04:52.9]} 3... Bc5 {[%clk 0:04:56]}
4. d4 {[%clk 0:04:45.4]} 4... exd4 {[%clk 0:04:52.6]} 5. Nxd4 {[%clk 0:04:44]}
5... Nc6 {[%clk 0:04:51.9]} 6. Nxc6 {[%clk 0:04:41.5]} 6... bxc6 {[%clk
0:04:51.2]} 7. Bg5 {[%clk 0:04:39.5]} 7... Qe7 {[%clk 0:04:46.4]} 8. Bc4 {[%clk
0:04:32.8]} 8... d6 {[%clk 0:04:41.3]} 9. Bxf6 {[%clk 0:04:25.7]} 9... Qxf6
{[%clk 0:04:38.5]} 10. O-O {[%clk 0:04:22.1]} 10... d5 {[%clk 0:04:34.8]} 11.
exd5 {[%clk 0:04:20.4]} 11... Bd6 {[%clk 0:04:34.1]} 12. dxc6 {[%clk 0:04:11]}
12... O-O {[%clk 0:04:31.2]} 13. Nd5 {[%clk 0:04:09.2]} 13... Qe5 {[%clk
0:04:28.5]} 14. g3 {[%clk 0:04:03.8]} 14... Be6 {[%clk 0:04:25.8]} 15. Re1
{[%clk 0:03:58.2]} 15... Qxb2 {[%clk 0:04:20.4]} 16. Nf4 {[%clk 0:03:15.5]}
16... Bxc4 {[%clk 0:04:17.2]} 17. Rb1 {[%clk 0:03:06.3]} 17... Qf6 {[%clk
0:03:39.4]} 18. Re4 {[%clk 0:02:59.8]} 18... Bxa2 {[%clk 0:03:28.1]} 19. Nd5
{[%clk 0:02:53.5]} 19... Bxd5 {[%clk 0:03:27]} 20. Rd4 {[%clk 0:02:41.4]} 20...
Bc5 {[%clk 0:03:20.8]} 21. Rf4 {[%clk 0:02:27.4]} 21... Qd6 {[%clk 0:03:14.7]}
22. Rf5 {[%clk 0:02:20.4]} 22... Bxc6 {[%clk 0:03:03.9]} 23. Qxd6 {[%clk
0:02:08.6]} 23... Bxd6 {[%clk 0:03:03.8]} 24. Ra5 {[%clk 0:01:53.7]} 24... Rab8
{[%clk 0:02:59.4]} 25. Rxb8 {[%clk 0:01:51.6]} 25... Rxb8 {[%clk 0:02:59.3]} 26.
f3 {[%clk 0:01:46.6]} 26... Bxf3 {[%clk 0:02:57.3]} 27. Kf2 {[%clk 0:01:44.6]}
27... Bc6 {[%clk 0:02:47.8]} 28. Rxa7 {[%clk 0:01:39.2]} 28... Bc5+ {[%clk
0:02:42.3]} 29. Ke2 {[%clk 0:01:32]} 29... Bxa7 {[%clk 0:02:42.2]} 30. Kd3
{[%clk 0:01:29.5]} 30... Rb1 {[%clk 0:02:40.6]} 31. c4 {[%clk 0:01:27.6]} 31...
Rh1 {[%clk 0:02:40.5]} 32. Kc3 {[%clk 0:01:24.2]} 32... Rxh2 {[%clk 0:02:40.4]}
33. Kb4 {[%clk 0:01:22.5]} 33... Rh3 {[%clk 0:02:40.3]} 34. c5 {[%clk
0:01:20.9]} 34... Rxg3 {[%clk 0:02:40.2]} 35. Kc4 {[%clk 0:01:17.5]} 35... Rg5
{[%clk 0:02:40.1]} 36. Kd4 {[%clk 0:01:15.5]} 36... Rxc5 {[%clk 0:02:40]} 37.
Ke3 {[%clk 0:01:14.3]} 37... Rd5+ {[%clk 0:02:39.1]} 38. Ke4 {[%clk 0:01:13.2]}
38... h5 {[%clk 0:02:35.5]} 39. Kf4 {[%clk 0:01:12]} 39... h4 {[%clk 0:02:35.4]}
40. Kg4 {[%clk 0:01:11]} 40... h3 {[%clk 0:02:35.3]} 41. Kxh3 {[%clk 0:01:10.2]}
41... Bd7+ {[%clk 0:02:29.9]} 42. Kh4 {[%clk 0:01:08.4]} 42... c5 {[%clk
0:02:29.8]} 43. Kg3 {[%clk 0:01:06.3]} 43... c4 {[%clk 0:02:29.7]} 44. Kf4
{[%clk 0:01:05.2]} 44... c3 {[%clk 0:02:29.6]} 45. Ke4 {[%clk 0:01:04.3]} 45...
c2 {[%clk 0:02:29.5]} 46. Kxd5 {[%clk 0:01:03.2]} 46... c1=Q {[%clk 0:02:29.4]}
47. Kd6 {[%clk 0:01:01.8]} 47... Qc6+ {[%clk 0:02:28.5]} 48. Ke7 {[%clk
0:01:00.1]} 48... Qe6+ {[%clk 0:02:26.8]} 49. Kd8 {[%clk 0:00:58.7]} 49... Bb6#
{[%clk 0:02:26.7]} 0-1

[Event "Live Chess"]
[Site "Chess.com"]
[Date "2023.05.20"]
[Round "-"]
[White "bedsdrout"]
[Black "Albul"]
[Result "0-1"]
[WhiteElo "428"]
[BlackElo "2192"]
[TimeControl "300"]
[EndTime "10:25:14 PDT"]
[Termination "Albul won by checkmate"]

1. e4 {[%clk 0:04:51]} 1... d5 {[%clk 0:04:58.6]} 2. Qh5 {[%clk 0:04:42.7]} 2...
Nf6 {[%clk 0:04:53.7]} 3. exd5 {[%clk 0:04:41.8]} 3... Nxh5 {[%clk 0:04:52.3]}
4. d3 {[%clk 0:04:38]} 4... Qxd5 {[%clk 0:04:49.1]} 5. Be2 {[%clk 0:04:32.2]}
5... Qxg2 {[%clk 0:04:40.2]} 6. Bxh5 {[%clk 0:04:13]} 6... Qxh1 {[%clk
0:04:37.3]} 7. Nc3 {[%clk 0:04:09.4]} 7... Qxg1+ {[%clk 0:04:34.5]} 8. Ke2
{[%clk 0:03:59.7]} 8... Bg4+ {[%clk 0:04:33.4]} 9. Ke3 {[%clk 0:03:50.7]} 9...
Bxh5 {[%clk 0:04:28.6]} 10. Nd5 {[%clk 0:03:48.4]} 10... Na6 {[%clk 0:04:25.2]}
11. Kd4 {[%clk 0:03:43.7]} 11... O-O-O {[%clk 0:04:15.9]} 12. b3 {[%clk
0:03:37.8]} 12... Qxf2+ {[%clk 0:04:09.9]} 13. Ke4 {[%clk 0:03:31.7]} 13... Bg6+
{[%clk 0:04:01.4]} 14. Ke5 {[%clk 0:03:27.6]} 14... Rxd5+ {[%clk 0:03:56.9]} 15.
Kxd5 {[%clk 0:03:25.4]} 15... Qc5# {[%clk 0:03:56.4]} 0-1